lending/lending_fUSD_20240219
["ID","MTS","AMOUNT","RATE_DAILY","PERIOD"]
[314459671,1708367458972,-500.0,0.00046575,30]
[314459673,1708367458982,-1244.69,0.00046575,30]
[314459675,1708367458992,-907.83,0.00046575,30]
[314459677,1708367459002,-854.13,0.00046575,30]
[314459679,1708367459011,-500.0,0.00046575,30]
[314459681,1708367459020,-724.86,0.00046575,30]
[314459683,1708367459029,-500.0,0.00046575,30]
[314459685,1708367459038,-500.0,0.00046575,30]
[314459687,1708367459047,-500.0,0.00046575,30]
[314459689,1708367459056,-907.86,0.00046575,30]
[314459691,1708367459066,-500.0,0.00046575,30]
[314459693,1708367459075,-500.0,0.00046575,30]
[314459695,1708367459085,-503.65,0.00046575,30]
[314459697,1708367459094,-500.0,0.00046575,30]
[314459699,1708367459103,-1027.84,0.00046575,30]
[314459701,1708367459112,-500.0,0.00046575,30]
[314459703,1708367459121,-831.7,0.00046575,30]
[314459705,1708367459130,-500.0,0.00046575,30]
[314459707,1708367459139,-500.0,0.00046575,30]
[314459709,1708367459149,-500.0,0.00046575,30]
[314459711,1708367459159,-905.12,0.00046575,30]
[314459713,1708367459168,-500.0,0.00046575,30]
[314459715,1708367459177,-500.0,0.00046575,30]
[314459717,1708367459187,-500.0,0.00046575,30]
[314459719,1708367459196,-500.0,0.00046575,30]
[314459721,1708367459206,-637.15,0.00046575,30]
[314459723,1708367459214,-519.52,0.00046575,30]
[314459725,1708367459223,-500.0,0.00046575,30]
[314459727,1708367459232,-500.0,0.00046575,30]
[314459729,1708367459244,-500.0,0.00046575,30]
[314459730,1708367459253,-500.0,0.00046575,30]
[314459732,1708367459262,-500.0,0.00046575,30]
[314459735,1708367459272,-404.20114924,0.00046575,30]
[314459737,1708367459282,-500.0,0.00046575,30]
[314459738,1708367459291,-500.0,0.00046575,30]
[314459741,1708367459301,-961.18,0.00046575,30]
[314459743,1708367459310,-500.0,0.00046575,30]
[314459745,1708367459320,-500.0,0.00046575,30]
[314459746,1708367459329,-500.0,0.00046575,30]
[314459749,1708367459339,-500.0,0.00046575,30]
[314459751,1708367459349,-598.39,0.00046575,30]
[314459753,1708367459358,-500.0,0.00046575,30]
[314459755,1708367459368,-500.0,0.00046575,30]
[314459756,1708367459377,-500.0,0.00046575,30]
[314459758,1708367459387,-643.7276054,0.00046575,30]
[314459761,1708367459397,-500.0,0.00046575,30]
[314459762,1708367459406,-556.77,0.00046575,30]
[314459764,1708367459416,-1000.0,0.00046575,7]
[314459767,1708367459425,-500.0,0.00046575,30]
[314459768,1708367459434,-500.0,0.00046575,30]
[314459770,1708367459443,-500.0,0.00046575,30]
[314459772,1708367459453,-500.0,0.00046575,30]
[314459774,1708367459462,-883.24,0.00046575,30]
[314459776,1708367459471,-500.0,0.00046575,30]
[314459778,1708367459481,-500.0,0.00046575,30]
[314459781,1708367459493,-693.5,0.00046575,30]
[314459783,1708367459503,-500.0,0.00046575,30]
[314459785,1708367459512,-1010.97,0.00046575,30]
[314459787,1708367459521,-808.95,0.00046575,30]
[314459789,1708367459530,-918.51,0.00046575,30]
[314459791,1708367459540,-500.0,0.00046575,30]
[314459793,1708367459550,-500.0,0.00046575,30]
[314459795,1708367459559,-500.0,0.00046575,30]
[314459797,1708367459568,-500.0,0.00046575,30]
[314459799,1708367459577,-500.0,0.00046575,30]
[314459800,1708367459586,-500.0,0.00046575,30]
[314459803,1708367459596,-383.23894124,0.00046575,30]
[314459804,1708367459606,-500.0,0.00046575,30]
[314459806,1708367459617,-500.0,0.00046575,30]
[314459808,1708367459628,-500.0,0.00046575,30]
[314459810,1708367459638,-930.71,0.00046575,30]
[314459813,1708367459648,-696.02,0.00046575,30]
[314459815,1708367459659,-500.0,0.00046575,2]
[314459817,1708367459668,-500.0,0.00046575,30]
[314459819,1708367459677,-500.0,0.00046575,30]
[314459820,1708367459687,-500.0,0.00046575,30]
[314459822,1708367459698,-508.47541511,0.00046575,30]
[314459824,1708367459708,-796.74,0.00046575,30]
[314459827,1708367459717,-500.0,0.00046575,30]
[314459828,1708367459727,-500.0,0.00046575,30]
[314459831,1708367459738,-508.66,0.00046575,30]
[314459833,1708367459748,-500.0,0.00046575,30]
[314459835,1708367459757,-500.0,0.00046575,30]
[314459837,1708367459767,-500.0,0.00046575,30]
[314459839,1708367459776,-991.1,0.00046575,30]
[314459841,1708367459786,-537.14893879,0.00046575,30]
[314459843,1708367459795,-870.24,0.00046575,30]
[314459844,1708367459805,-500.0,0.00046575,30]
[314459846,1708367459814,-500.0,0.00046575,30]
[314459849,1708367459824,-500.0,0.00046575,30]
[314459850,1708367459833,-640.04,0.00046575,30]
[314459852,1708367459843,-513.28,0.00046575,30]
[314459853,1708367459853,-500.0,0.00046575,30]
[314459854,1708367459862,-500.0,0.00046575,30]
[314459855,1708367459871,-500.0,0.00046575,30]
[314459856,1708367459881,-500.0,0.00046575,30]
[314459857,1708367459890,-500.0,0.00046575,30]
[314459858,1708367459899,-500.0,0.00046575,30]
[314459859,1708367459908,-500.0,0.00046575,30]
[314459860,1708367459917,-676.86,0.00046575,30]
[314459861,1708367459927,-818.02,0.00046575,30]
[314459862,1708367459936,-10000.0,0.00046575,30]
[314459863,1708367459946,-915.94,0.00046575,30]
[314459864,1708367459955,-500.0,0.00046575,30]
[314459865,1708367459965,-500.0,0.00046575,30]
[314459867,1708367459974,-500.0,0.00046575,30]
[314459869,1708367459983,-500.0,0.00046575,30]
[314459871,1708367459993,-500.0,0.00046575,30]
[314459873,1708367460003,-500.0,0.00046575,30]
[314459875,1708367460012,-500.0,0.00046575,30]
[314459877,1708367460020,-715.9,0.00046575,30]
[314459879,1708367460032,-500.0,0.00046575,30]
[314459881,1708367460041,-500.0,0.00046575,30]
[314459883,1708367460050,-2000.0,0.00046575,30]
[314459885,1708367460060,-500.0,0.00046575,30]
[314459887,1708367460070,-10000.0,0.00046575,30]
[314459889,1708367460080,-500.0,0.00046575,30]
[314459891,1708367460090,-500.0,0.00046575,30]
[314459893,1708367460099,-516.38,0.00046575,30]
[314459895,1708367460109,-500.0,0.00046575,30]
[314459897,1708367460118,-500.0,0.00046575,30]
[314459899,1708367460128,-500.0,0.00046575,30]
[314459901,1708367460137,-500.0,0.00046575,30]
[314459903,1708367460146,-379.89573328,0.00046575,30]
[314459905,1708367460155,-500.0,0.00046575,30]
[314459907,1708367460164,-500.0,0.00046575,30]
[314459909,1708367460174,-500.0,0.00046575,30]
[314459911,1708367460182,-500.0,0.00046575,30]
[314459913,1708367460191,-500.0,0.00046575,30]
[314459915,1708367460200,-177.4443856,0.00046575,30]
[314459917,1708367460209,-500.0,0.00046575,30]
[314459919,1708367460219,-630.29,0.00046575,30]
[314459921,1708367460228,-500.0,0.00046575,30]
[314459923,1708367460236,-500.0,0.00046575,30]
[314459925,1708367460246,-500.0,0.00046575,30]
[314459927,1708367460255,-500.0,0.00046575,30]
[314459929,1708367460264,-755.66,0.00046575,30]
[314459931,1708367460273,-883.79,0.00046575,30]
[314459933,1708367460282,-500.0,0.00046575,30]
[314459935,1708367460292,-500.0,0.00046575,30]
[314459937,1708367460302,-500.0,0.00046575,30]
[314459939,1708367460311,-500.0,0.00046575,30]
[314459941,1708367460323,-500.0,0.00046575,30]
[314459943,1708367460332,-944.12,0.00046575,30]
[314459945,1708367460341,-500.0,0.00046575,30]
[314459947,1708367460350,-743.35,0.00046575,30]
[314459949,1708367460359,-500.0,0.00046575,30]
[314459951,1708367460368,-500.0,0.00046575,30]
[314459953,1708367460377,-457.50952005,0.00046575,30]
[314459955,1708367460387,-500.0,0.00046575,30]
[314459957,1708367460396,-500.0,0.00046575,30]
[314459959,1708367460405,-675.58,0.00046575,30]
[314459961,1708367460414,-581.53126046,0.00046575,30]
[314459963,1708367460423,-500.0,0.00046575,30]
[314459965,1708367460432,-769.59,0.00046575,30]
[314459967,1708367460442,-668.02,0.00046575,30]
[314459969,1708367460451,-500.0,0.00046575,30]
[314459971,1708367460460,-500.0,0.00046575,30]
[314459973,1708367460470,-526.46676384,0.00046575,30]
[314459975,1708367460479,-500.0,0.00046575,30]
[314459977,1708367460489,-1530.03,0.00046575,30]
[314459979,1708367460500,-500.0,0.00046575,30]
[314459980,1708367460509,-500.0,0.00046575,7]
[314459982,1708367460519,-500.0,0.00046575,30]
[314459984,1708367460529,-500.0,0.00046575,30]
[314459986,1708367460538,-500.0,0.00046575,30]
[314459988,1708367460549,-500.0,0.00046575,30]
[314459991,1708367460559,-500.0,0.00046575,30]
[314459992,1708367460569,-500.0,0.00046575,30]
[314459994,1708367460580,-521.34956123,0.00046575,30]
[314459996,1708367460590,-500.0,0.00046575,30]
[314459999,1708367460599,-994.32,0.00046575,30]
[314460000,1708367460610,-500.0,0.00046575,30]
[314460003,1708367460620,-518.04723688,0.00046575,30]
[314460005,1708367460634,-837.23,0.00046575,30]
[314460007,1708367460643,-521.03958905,0.00046575,30]
[314460008,1708367460652,-921.34,0.00046575,30]
[314460010,1708367460662,-500.0,0.00046575,30]
[314460013,1708367460673,-500.0,0.00046575,30]
[314460015,1708367460683,-500.0,0.00046575,30]
[314460016,1708367460692,-500.0,0.00046575,30]
[314460019,1708367460702,-500.0,0.00046575,30]
[314460020,1708367460712,-500.0,0.00046575,30]
[314460022,1708367460721,-500.0,0.00046575,30]
[314460024,1708367460730,-500.0,0.00046575,30]
[314460026,1708367460739,-996.59,0.00046575,30]
[314460028,1708367460748,-500.0,0.00046575,30]
[314460030,1708367460757,-500.0,0.00046575,30]
[314460032,1708367460766,-741.56,0.00046575,30]
[314460034,1708367460775,-500.0,0.00046575,30]
[314460036,1708367460784,-500.0,0.00046575,30]
[314460038,1708367460793,-500.0,0.00046575,30]
[314460040,1708367460803,-500.0,0.00046575,30]
[314460042,1708367460812,-650.32,0.00046575,30]
[314460044,1708367460821,-500.0,0.00046575,30]
[314460046,1708367460830,-500.0,0.00046575,30]
[314460048,1708367460839,-500.0,0.00046575,30]
[314460050,1708367460848,-879.81,0.00046575,30]
[314460052,1708367460858,-516.66,0.00046575,30]
[314460054,1708367460867,-500.0,0.00046575,30]
[314460056,1708367460876,-500.0,0.00046575,30]
[314460058,1708367460885,-846.88,0.00046575,30]
[314460060,1708367460895,-500.0,0.00046575,30]
[314460062,1708367460904,-500.0,0.00046575,30]
[314460064,1708367460913,-500.0,0.00046575,30]
[314460066,1708367460922,-1040.51,0.00046575,30]
[314460068,1708367460931,-605.6,0.00046575,30]
[314460070,1708367460940,-371.66738157,0.00046575,30]
[314460072,1708367460949,-1060.59,0.00046575,30]
[314460074,1708367460958,-500.0,0.00046575,30]
[314460076,1708367460968,-500.0,0.00046575,30]
[314460078,1708367460977,-500.0,0.00046575,30]
[314460080,1708367460986,-775.55,0.00046575,30]
[314460082,1708367460996,-500.0,0.00046575,30]
[314460084,1708367461005,-514.89617534,0.00046575,14]
[314460086,1708367461014,-183.97810608,0.00046575,30]
[314460088,1708367461023,-763.74,0.00046575,30]
[314460090,1708367461032,-500.0,0.00046575,30]
[314460092,1708367461041,-500.0,0.00046575,30]
[314460094,1708367461050,-824.49,0.00046575,30]
[314460096,1708367461059,-500.0,0.00046575,30]
[314460098,1708367461068,-500.0,0.00046575,30]
[314460100,1708367461077,-501.92437258,0.00046575,30]
[314460102,1708367461086,-500.0,0.00046575,30]
[314460104,1708367461096,-500.0,0.00046575,30]
[314460106,1708367461105,-500.0,0.00046575,30]
[314460108,1708367461115,-500.0,0.00046575,30]
[314460110,1708367461124,-500.0,0.00046575,30]
[314460112,1708367461134,-500.0,0.00046575,30]
[314460114,1708367461143,-500.0,0.00046575,30]
[314460116,1708367461154,-958.33,0.00046575,30]
[314460118,1708367461163,-888.87,0.00046575,30]
[314460120,1708367461172,-1736.91,0.00046575,30]
[314460122,1708367461182,-500.0,0.00046575,30]
[314460124,1708367461191,-500.0,0.00046575,30]
[314460126,1708367461200,-500.0,0.00046575,30]
[314460128,1708367461209,-500.0,0.00046575,30]
[314460130,1708367461218,-500.0,0.00046575,30]
[314460132,1708367461227,-500.0,0.00046575,30]
[314460134,1708367461236,-500.0,0.00046575,30]
[314460136,1708367461246,-500.0,0.00046575,30]
[314460138,1708367461255,-929.8,0.00046575,30]
[314460140,1708367461264,-500.0,0.00046575,30]
[314460142,1708367461273,-620.04,0.00046575,30]
[314460144,1708367461282,-500.0,0.00046575,30]
[314460146,1708367461292,-500.0,0.00046575,30]
[314460148,1708367461302,-500.0,0.00046575,30]
[314460150,1708367461311,-2290.36,0.00046575,30]
[314460152,1708367461320,-728.29,0.00046575,30]
[314460154,1708367461329,-500.0,0.00046575,30]
[314460156,1708367461339,-515.14798678,0.00046575,30]
[314460158,1708367461348,-500.0,0.00046575,30]
[314460160,1708367461357,-810.91,0.00046575,30]
[314460162,1708367461366,-500.0,0.00046575,30]
[314460164,1708367461375,-500.0,0.00046575,30]
[314460166,1708367461384,-2673.99,0.00046575,30]
[314460168,1708367461394,-500.0,0.00046575,30]
[314460170,1708367461404,-500.0,0.00046575,30]
[314460171,1708367461413,-500.0,0.00046575,30]
[314460173,1708367461424,-500.0,0.00046575,30]
[314460175,1708367461434,-2868.61,0.00046575,30]
[314460177,1708367461443,-500.0,0.00046575,30]
[314460178,1708367461453,-1647.68,0.00046575,30]
[314460180,1708367461462,-500.0,0.00046575,30]
[314460182,1708367461471,-922.14,0.00046575,30]
[314460184,1708367461481,-500.0,0.00046575,30]
[314460185,1708367461491,-500.0,0.00046575,30]
[314460187,1708367461501,-500.0,0.00046575,30]
[314460189,1708367461510,-500.0,0.00046575,30]
[314460191,1708367461519,-500.0,0.00046575,30]
[314460193,1708367461528,-500.0,0.00046575,30]
[314460194,1708367461537,-844.91,0.00046575,30]
[314460196,1708367461547,-500.0,0.00046575,30]
[314460198,1708367461556,-2917.53,0.00046575,30]
[314460199,1708367461565,-500.0,0.00046575,30]
[314460201,1708367461575,-778.12,0.00046575,30]
[314460203,1708367461584,-500.0,0.00046575,30]
[314460205,1708367461593,-500.0,0.00046575,30]
[314460207,1708367461602,-500.0,0.00046575,30]
[314460209,1708367461611,-664.12,0.00046575,2]
[314460210,1708367461624,-500.0,0.00046575,30]
[314460212,1708367461634,-500.0,0.00046575,30]
[314460214,1708367461643,-500.0,0.00046575,30]
[314460216,1708367461652,-500.0,0.00046575,30]
[314460218,1708367461662,-500.0,0.00046575,30]
[314460219,1708367461672,-500.0,0.00046575,30]
[314460221,1708367461681,-1278.97,0.00046575,30]
[314460223,1708367461690,-1472.5,0.00046575,30]
[314460225,1708367461699,-500.0,0.00046575,30]
[314460227,1708367461710,-543.58972288,0.00046575,30]
[314460228,1708367461720,-747.32,0.00046575,30]
[314460230,1708367461730,-500.0,0.00046575,30]
[314460232,1708367461739,-733.24,0.00046575,30]
[314460234,1708367461750,-500.0,0.00046575,30]
[314460236,1708367461759,-1120.8,0.00046575,30]
[314460237,1708367461768,-5436.14,0.00046575,30]
[314460239,1708367461778,-500.0,0.00046575,30]
[314460241,1708367461787,-540.89930657,0.00046575,30]
[314460243,1708367461796,-500.0,0.00046575,30]
[314460244,1708367461806,-500.0,0.00046575,30]
[314460246,1708367461815,-381.15216982,0.00046575,30]
[314460248,1708367461825,-393.045884,0.00046575,30]
[314460250,1708367461834,-500.0,0.00046575,30]
[314460251,1708367461843,-500.0,0.00046575,30]
[314460253,1708367461852,-1430.68,0.00046575,30]
[314460255,1708367461862,-526.47077836,0.00046575,30]
[314460257,1708367461871,-500.0,0.00046575,30]
[314460258,1708367461880,-532.77,0.00046575,30]
[314460260,1708367461889,-627.26,0.00046575,30]
[314460262,1708367461899,-527.32078279,0.00046575,30]
[314460264,1708367461908,-3472.47,0.00046575,30]
[314460266,1708367461918,-500.0,0.00046575,30]
[314460268,1708367461927,-500.0,0.00046575,2]
[314460269,1708367461936,-500.0,0.00046575,30]
[314460271,1708367461946,-618.89058348,0.00046575,30]
[314460273,1708367461955,-934.76,0.00046575,30]
[314460275,1708367461966,-758.94,0.00046575,30]
[314460277,1708367461976,-500.0,0.00046575,30]
[314460279,1708367461985,-1012.59,0.00046575,30]
[314460280,1708367461996,-1544.91,0.00046575,30]
[314460282,1708367462006,-528.6443232,0.00046575,7]
[314460284,1708367462015,-500.0,0.00046575,30]
[314460286,1708367462025,-500.0,0.00046575,30]
[314460288,1708367462034,-500.0,0.00046575,30]
[314460290,1708367462044,-830.33,0.00046575,30]
[314460292,1708367462053,-500.0,0.00046575,30]
[314460294,1708367462063,-1692.94,0.00046575,30]
[314460296,1708367462072,-500.0,0.00046575,30]
[314460297,1708367462082,-591.73,0.00046575,30]
[314460299,1708367462092,-398.651877,0.00046575,30]
[314460301,1708367462101,-500.0,0.00046575,30]
[314460303,1708367462111,-694.82,0.00046575,30]
[314460305,1708367462120,-522.98,0.00046575,30]
[314460307,1708367462130,-2358.85,0.00046575,30]
[314460309,1708367462139,-500.0,0.00046575,30]
[314460311,1708367462149,-856.22,0.00046575,30]
[314460312,1708367462159,-500.0,0.00046575,30]
[314460314,1708367462168,-500.0,0.00046575,30]
[314460316,1708367462177,-500.0,0.00046575,30]
[314460318,1708367462187,-500.0,0.00046575,30]
[314460320,1708367462196,-500.0,0.00046575,30]
[314460322,1708367462205,-500.0,0.00046575,30]
[314460323,1708367462215,-2094.25,0.00046575,30]
[314460325,1708367462224,-959.91,0.00046575,30]
[314460327,1708367462234,-2258.1,0.00046575,30]
[314460329,1708367462244,-794.12,0.00046575,30]
[314460331,1708367462253,-500.0,0.00046575,30]
[314460333,1708367462262,-500.0,0.00046575,30]
[314460352,1708367462453,-583.33,0.00046575,30]
[314460354,1708367462462,-1964.45,0.00046575,30]
[314460355,1708367462471,-1127.92,0.00046575,30]
[314460357,1708367462482,-500.0,0.00046575,30]
[314460359,1708367462492,-500.0,0.00046575,30]
[314460361,1708367462502,-500.0,0.00046575,30]
[314460363,1708367462512,-500.0,0.00046575,30]
[314460365,1708367462521,-500.0,0.00046575,30]
[314460367,1708367462531,-2482.58,0.00046575,30]
[314460369,1708367462540,-500.0,0.00046575,30]
[314460371,1708367462550,-500.0,0.00046575,30]
[314460373,1708367462559,-500.0,0.00046575,30]
[314460374,1708367462568,-500.0,0.00046575,30]
[314460376,1708367462578,-1318.34,0.00046575,30]
[314460378,1708367462588,-500.0,0.00046575,30]
[314460380,1708367462597,-3003.1,0.00046575,30]
[314460382,1708367462606,-914.85,0.00046575,30]
[314460384,1708367462616,-500.0,0.00046575,30]
[314460386,1708367462627,-2922.45,0.00046575,30]
[314460387,1708367462637,-5554.0,0.00046575,30]
[314460389,1708367462647,-1287.54,0.00046575,30]
[314460391,1708367462657,-500.0,0.00046575,30]
[314460393,1708367462667,-2514.6,0.00046575,30]
[314460395,1708367462677,-593.58,0.00046575,30]
[314460397,1708367462687,-500.0,0.00046575,30]
[314460399,1708367462696,-801.74,0.00046575,30]
[314460400,1708367462707,-500.0,0.00046575,30]
[314460402,1708367462717,-150.0,0.00046575,30]
[314460404,1708367462726,-500.0,0.00046575,30]
[314460406,1708367462736,-1791.65,0.00046575,30]
[314460408,1708367462746,-500.0,0.00046575,30]
[314460410,1708367462755,-500.0,0.00046575,30]
[314460411,1708367462765,-1233.32,0.00046575,30]
[314460413,1708367462775,-539.84,0.00046575,30]
[314460415,1708367462784,-503.72456859,0.00046575,30]
[314460417,1708367462793,-500.0,0.00046575,30]
[314460419,1708367462802,-1302.31,0.00046575,30]
[314460421,1708367462812,-500.0,0.00046575,30]
[314460422,1708367462821,-2378.55,0.00046575,30]
[314460424,1708367462830,-1849.18,0.00046575,30]
[314460426,1708367462840,-1864.74,0.00046575,30]
[314460428,1708367462850,-1691.95,0.00046575,30]
[314460430,1708367462859,-500.0,0.00046575,30]
[314460432,1708367462869,-1310.28,0.00046575,30]
[314460434,1708367462878,-708.34,0.00046575,30]
[314460436,1708367462887,-500.0,0.00046575,30]
[314460437,1708367462897,-988.28,0.00046575,30]
[314460439,1708367462907,-500.0,0.00046575,30]
[314460441,1708367462916,-500.0,0.00046575,30]
[314460443,1708367462926,-500.0,0.00046575,30]
[314460445,1708367462935,-500.0,0.00046575,30]
[314460447,1708367462944,-623.54,0.00046575,30]
[314460449,1708367462953,-500.0,0.00046575,30]
[314460451,1708367462963,-500.0,0.00046575,30]
[314460452,1708367462972,-778.18,0.00046575,30]
[314460454,1708367462982,-500.0,0.00046575,30]
[314460456,1708367462992,-500.0,0.00046575,30]
[314460458,1708367463002,-500.0,0.00046575,30]
[314460460,1708367463013,-1192.11,0.00046575,30]
[314460462,1708367463024,-500.0,0.00046575,30]
[314460464,1708367463033,-1469.76,0.00046575,30]
[314460466,1708367463043,-9094.73,0.00046575,30]
[314460467,1708367463053,-500.0,0.00046575,30]
[314460469,1708367463062,-2029.35,0.00046575,30]
[314460471,1708367463071,-500.0,0.00046575,30]
[314460473,1708367463080,-500.0,0.00046575,30]
[314460475,1708367463089,-474.96680825,0.00046575,30]
[314460477,1708367463098,-500.0,0.00046575,30]
[314460479,1708367463107,-3311.14,0.00046575,30]
[314460481,1708367463116,-2251.23,0.00046575,30]
[314460482,1708367463126,-2382.26,0.00046575,30]
[314460484,1708367463135,-500.0,0.00046575,30]
[314460486,1708367463144,-500.0,0.00046575,30]
[314460488,1708367463154,-500.0,0.00046575,30]
[314460490,1708367463163,-500.0,0.00046575,30]
[314460492,1708367463172,-500.0,0.00046575,30]
[314460494,1708367463181,-500.0,0.00046575,30]
[314460496,1708367463190,-1178.54,0.00046575,30]
[314460498,1708367463199,-500.0,0.00046575,30]
[314460499,1708367463208,-500.0,0.00046575,30]
[314460500,1708367463217,-2318.99,0.00046575,30]
[314460501,1708367463226,-500.0,0.00046575,30]
[314460502,1708367463235,-500.0,0.00046575,30]
[314460503,1708367463245,-512.12880096,0.00046575,30]
[314460504,1708367463254,-561.35,0.00046575,30]
[314460505,1708367463263,-500.0,0.00046575,30]
[314460506,1708367463272,-500.0,0.00046575,30]
[314460507,1708367463282,-2437.9,0.00046575,30]
[314460508,1708367463291,-1204.19,0.00046575,30]
[314460509,1708367463301,-500.0,0.00046575,30]
[314460510,1708367463310,-513.89069355,0.00046575,30]
[314460511,1708367463319,-613.83,0.00046575,30]
[314460512,1708367463329,-787.52,0.00046575,30]
[314460513,1708367463338,-2804.6,0.00046575,30]
[314460514,1708367463350,-1345.09,0.00046575,30]
[314460515,1708367463359,-912.63,0.00046575,30]
[314460516,1708367463369,-500.0,0.00046575,30]
[314460517,1708367463378,-318.82316892,0.00046575,30]
[314460518,1708367463387,-3745.95,0.00046575,30]
[314460520,1708367463397,-6032.95,0.00046575,30]
[314460521,1708367463406,-500.0,0.00046575,30]
[314460523,1708367463415,-1979.5,0.00046575,30]
[314460525,1708367463425,-2079.61,0.00046575,30]
[314460527,1708367463435,-500.0,0.00046575,30]
[314460529,1708367463444,-500.0,0.00046575,30]
[314460531,1708367463453,-500.0,0.00046575,30]
[314460533,1708367463463,-1285.56,0.00046575,30]
[314460535,1708367463472,-500.0,0.00046575,30]
[314460537,1708367463482,-500.0,0.00046575,30]
[314460539,1708367463492,-500.0,0.00046575,30]
[314460541,1708367463501,-2983.55,0.00046575,30]
[314460543,1708367463510,-1110.06,0.00046575,30]
[314460545,1708367463520,-500.0,0.00046575,30]
[314460547,1708367463529,-500.0,0.00046575,30]
[314460549,1708367463539,-975.97,0.00046575,30]
[314460551,1708367463549,-500.0,0.00046575,30]
[314460553,1708367463558,-25839.37,0.00046575,30]
[314460555,1708367463568,-3773.18,0.00046575,30]
[314460557,1708367463577,-500.0,0.00046575,30]
[314460559,1708367463587,-1349.11,0.00046575,30]
[314460561,1708367463596,-1223.94,0.00046575,30]
[314460563,1708367463605,-1181.79,0.00046575,30]
[314460565,1708367463615,-694.42,0.00046575,30]
[314460567,1708367463629,-500.0,0.00046575,30]
[314460569,1708367463639,-500.0,0.00046575,30]
[314460571,1708367463648,-2205.63,0.00046575,30]
[314460574,1708367463659,-500.0,0.00046575,30]
[314460576,1708367463668,-209.41714757,0.00046575,30]
[314460578,1708367463678,-500.0,0.00046575,30]
[314460579,1708367463687,-529.37479427,0.00046575,30]
[314460582,1708367463698,-2526.08,0.00046575,30]
[314460583,1708367463708,-500.0,0.00046575,30]
[314460585,1708367463717,-1335.01,0.00046575,30]
[314460587,1708367463727,-500.0,0.00046575,30]
[314460590,1708367463736,-521.37245634,0.00046575,30]
[314460592,1708367463745,-500.0,0.00046575,30]
[314460594,1708367463756,-2698.55,0.00046575,30]
[314460596,1708367463765,-571.87,0.00046575,30]
[314460598,1708367463774,-2884.04,0.00046575,30]
[314460600,1708367463784,-2283.29,0.00046575,30]
[314460602,1708367463792,-500.0,0.00046575,30]
[314460603,1708367463802,-500.0,0.00046575,30]
[314460606,1708367463812,-500.0,0.00046575,30]
[314460608,1708367463821,-500.0,0.00046575,30]
[314460609,1708367463830,-500.0,0.00046575,30]
[314460612,1708367463867,-1246.6,0.00046575,30]
[314460613,1708367463877,-1081.39,0.00046575,30]
[314460615,1708367463887,-1827.16,0.00046575,30]
[314460617,1708367463896,-2130.87,0.00046575,30]
[314460620,1708367463905,-500.0,0.00046575,30]
[314460622,1708367463914,-1108.59,0.00046575,30]
[314460624,1708367463924,-500.0,0.00046575,30]